bitfinex-derivatives/quotes_BNBF0:USTF0_20251203
["timestamp","ask_amount","ask_price","bid_price","bid_amount"]
[1764799425593,0.62737265,916.19,914.29,1.506]
[1764799426094,1.08534688,916.16,914.29,1.506]
[1764799426293,0.62737265,916.15,914.29,1.506]
[1764799426592,0.62737265,916.14,914.29,1.506]
[1764799426793,0.62737265,916.13,914.29,1.506]
[1764799426990,0.62737265,916.12,914.29,1.506]
[1764799427192,0.62737265,916.11,914.29,1.506]
[1764799427389,0.62737265,916.1,914.29,1.506]
[1764799427594,0.62737265,916.09,914.29,1.506]
[1764799427794,0.62737265,916.08,914.29,1.506]
[1764799427995,0.62737265,916.07,914.29,1.506]
[1764799428190,0.62737265,916.06,914.29,1.506]
[1764799428396,0.62737265,916.05,914.29,1.506]
[1764799428695,0.62737265,916.04,914.29,1.506]
[1764799428896,0.62737265,916.03,914.29,1.506]
[1764799429196,1.08534688,915.95,914.29,1.506]
[1764799429394,1.08534688,915.92,914.29,1.506]
[1764799429592,0.62737265,915.91,914.29,1.506]
[1764799429796,0.62737265,915.9,914.29,1.506]
[1764799429993,0.62737265,915.89,914.29,1.506]
[1764799430195,0.62737265,915.88,914.29,1.506]
[1764799430393,0.62737265,915.87,914.29,1.506]
[1764799430698,0.62737265,915.86,914.3,1.125]
[1764799430896,0.62737265,915.85,914.3,1.125]
[1764799431092,0.62737265,915.84,914.3,1.125]
[1764799431293,0.62737265,915.83,914.3,1.125]
[1764799431497,0.62737265,915.82,914.3,1.125]
[1764799431697,0.62737265,915.81,914.3,1.125]
[1764799431993,0.62737265,915.8,914.3,1.125]
[1764799432196,0.62737265,915.79,914.3,1.125]
[1764799432397,0.62737265,915.78,914.3,1.125]
[1764799432599,0.62737265,915.77,914.3,1.125]
[1764799432895,0.62737265,915.76,914.3,1.125]
[1764799433095,0.62737265,915.75,914.3,1.125]
[1764799433301,0.62737265,915.74,914.3,1.125]
[1764799433496,0.62737265,915.73,914.3,1.125]
[1764799433702,0.62737265,915.72,914.3,1.125]
[1764799433902,0.62737265,915.71,913.51,0.01381883]
[1764799434103,0.62737265,915.7,913.51,0.01381883]
[1764799434303,1.08534688,915.35,913.23,0.19026479]
[1764799434500,2.71786809,916.57,912.6,0.01097896]
[1764799434501,1.08534688,914.44,912.6,0.01097896]
[1764799434797,1.08534688,914.41,913.09,0.19051112]
[1764799434998,0.62737265,914.4,913.09,0.19051112]
[1764799435202,0.62737265,914.39,913.09,0.19051112]
[1764799435401,1.71271953,914.38,913.09,0.19051112]
[1764799435598,0.62737265,914.37,913.09,0.19051112]
[1764799435797,0.62737265,914.36,913.09,0.19051112]
[1764799435997,0.62737265,914.35,913.09,0.19051112]
[1764799436199,0.62737265,914.34,913.09,0.19051112]
[1764799436504,1.08534688,914.31,913.09,0.19051112]
[1764799436703,0.62737265,914.3,913.09,0.19051112]
[1764799436904,0.62737265,914.29,913.1,1.533]
[1764799437099,2.71786809,915.14,913.1,1.533]
[1764799437100,1.08534688,914.25,913.1,1.533]
[1764799437299,1.08534688,914.2,913.1,1.533]
[1764799437505,0.62737265,914.19,913.1,1.533]
[1764799437697,1.08534688,914.07,913.1,1.533]
[1764799437902,1.08534688,913.98,913.1,1.533]
[1764799438203,0.62737265,913.97,913.1,1.533]
[1764799438399,1.08534688,913.95,913.1,1.533]
[1764799438599,1.08534688,913.84,913.1,1.533]
[1764799438799,0.62737265,913.83,913.1,1.533]
[1764799439004,0.62737265,913.82,913.1,1.533]
[1764799439202,0.62737265,913.81,913.1,1.533]
[1764799439500,0.62737265,913.8,913.1,1.533]
[1764799439698,0.62737265,913.79,913.1,1.533]
[1764799439903,0.62737265,913.78,913.1,1.533]
[1764799440204,0.62737265,913.77,913.1,1.533]
[1764799440502,0.62737265,913.76,913.1,1.533]
[1764799440698,0.62737265,913.75,913.1,1.533]
[1764799440898,0.62737265,913.74,913.1,1.533]
[1764799441104,1.08534688,914.23,913.1,1.533]
[1764799441405,0.68875207,914.22,913.1,1.533]
[1764799441603,0.68875207,914.21,913.1,1.533]
[1764799441804,0.68875207,914.2,913.1,1.533]
[1764799442100,0.68875207,914.19,913.1,1.533]
[1764799442304,0.68875207,914.18,913.1,1.533]
[1764799442502,0.68875207,914.17,913.1,1.533]
[1764799442706,1.77409895,914.16,913.1,1.533]
[1764799442907,0.68875207,914.15,913.1,1.533]
[1764799443207,1.08534688,914.0,913.1,1.533]
[1764799443404,1.08534688,913.97,913.1,1.533]
[1764799443606,0.68875207,913.96,913.1,1.533]
[1764799443805,0.68875207,913.95,913.1,1.533]
[1764799444004,0.68875207,913.94,913.1,1.533]
[1764799444204,0.68875207,913.93,913.1,1.533]
[1764799444407,1.77409895,913.92,913.1,1.533]
[1764799444604,0.68875207,913.91,913.1,1.533]
[1764799444905,0.68875207,913.9,913.1,1.533]
[1764799445207,1.08534688,913.84,913.1,1.533]
[1764799445408,0.68875207,913.83,913.1,1.533]
[1764799445611,0.68875207,913.82,913.1,1.533]
[1764799445811,0.68875207,913.81,913.1,1.533]
[1764799446109,0.68875207,913.8,913.1,1.533]
[1764799446307,1.08534688,913.21,913.1,1.533]
[1764799446605,1.08534688,913.17,913.1,0.05381141]
[1764799446809,0.68875207,913.16,913.1,0.05381141]
[1764799447010,0.68875207,913.15,913.1,0.05381141]
[1764799447208,0.00810034,914.12,913.1,0.05381141]
[1764799447209,0.68875207,913.14,913.1,0.05381141]
[1764799447509,0.68875207,913.13,913.1,0.05381141]
[1764799447710,0.68875207,913.12,913.1,0.05381141]
[1764799447909,0.68875207,913.11,913.1,0.05381141]
[1764799451814,1.08534688,913.59,913.1,0.05381141]
[1764799452010,0.63371219,913.58,913.1,0.05381141]
[1764799452214,0.63371219,913.57,913.1,0.05381141]
[1764799452514,0.63371219,913.56,913.1,0.05381141]
[1764799452712,0.63371219,913.55,913.1,0.05381141]
[1764799453011,0.63371219,913.54,913.1,0.05381141]
[1764799453215,0.63371219,913.53,913.1,0.05381141]
[1764799453417,0.63371219,913.52,913.1,0.05381141]
[1764799453613,0.63371219,913.51,913.1,0.05381141]
[1764799453816,0.63371219,913.5,913.1,0.05381141]
[1764799454116,0.63371219,913.49,913.1,0.05381141]
[1764799454317,0.63371219,913.48,913.1,0.05381141]
[1764799454615,1.08534688,913.81,913.1,0.05381141]
[1764799454916,0.63327185,913.8,913.1,0.05381141]
[1764799455116,0.63327185,913.79,913.1,0.05381141]
[1764799455415,0.63327185,913.78,913.1,0.05381141]
[1764799455713,0.63327185,913.77,913.1,0.05381141]
[1764799456016,0.63327185,913.76,913.1,0.05381141]
[1764799456310,0.63327185,913.75,913.1,0.05381141]
[1764799456515,0.63327185,913.74,913.1,0.05381141]
[1764799456714,0.63327185,913.73,913.1,0.05381141]
[1764799456914,0.63327185,913.72,913.1,0.05381141]
[1764799457113,0.63327185,913.71,913.1,0.05381141]
[1764799457319,0.63327185,913.7,913.1,0.05381141]
[1764799457517,0.63327185,913.69,913.1,0.05381141]
[1764799457715,0.63327185,913.68,913.1,0.05381141]
[1764799457918,0.63327185,913.67,913.1,0.05381141]
[1764799458214,0.63327185,913.66,913.1,0.05381141]
[1764799458418,0.63327185,913.65,913.1,0.05381141]
[1764799458618,1.08534688,914.1,913.1,0.05381141]
[1764799458820,0.63098975,914.09,913.1,0.05381141]
[1764799459014,1.08534688,914.07,913.1,0.05381141]
[1764799459323,1.08534688,913.88,913.1,0.05381141]
[1764799459520,0.63098975,913.87,913.1,0.05381141]
[1764799459722,0.63098975,913.86,913.1,0.05381141]
[1764799459919,0.63098975,913.85,913.1,0.05381141]
[1764799460122,1.08534688,914.38,913.1,0.05381141]
[1764799460323,0.63075416,914.37,913.1,0.05381141]
[1764799460622,0.63075416,914.36,913.1,0.05381141]
[1764799460823,0.63075416,914.35,913.1,0.05381141]
[1764799461018,0.63075416,914.34,913.1,0.05381141]
[1764799461223,0.63075416,914.33,913.1,0.05381141]
[1764799461423,0.63075416,914.32,913.1,0.05381141]
[1764799461725,0.63075416,914.31,913.1,0.05381141]
[1764799462020,0.63075416,914.3,913.1,0.05381141]
[1764799462221,0.63075416,914.29,913.1,0.05381141]
[1764799462418,0.63075416,914.28,913.1,0.05381141]
[1764799462618,0.63075416,914.27,913.1,0.05381141]
[1764799462821,0.63075416,914.26,913.1,0.05381141]
[1764799463020,0.63075416,914.25,913.1,0.05381141]
[1764799463324,0.63075416,914.24,913.1,0.05381141]
[1764799463623,0.63075416,914.23,913.1,0.05381141]
[1764799463825,0.63075416,914.22,913.1,0.05381141]
[1764799464022,0.63075416,914.21,913.1,0.05381141]
[1764799464323,0.63075416,914.2,913.1,0.05381141]
[1764799464519,0.63075416,914.19,913.1,0.05381141]
[1764799464719,0.63075416,914.18,913.1,0.05381141]
[1764799464925,0.63075416,914.17,913.1,0.05381141]
[1764799465125,0.63075416,914.16,913.1,0.05381141]
[1764799465327,0.63075416,914.15,913.1,0.05381141]
[1764799465525,0.63075416,914.14,913.1,0.05381141]
[1764799465822,0.63075416,914.13,913.1,0.05381141]
[1764799466126,0.63075416,914.12,913.1,0.05381141]
[1764799466422,0.63075416,914.11,913.1,0.05381141]
[1764799466723,0.63075416,914.1,913.1,0.05381141]
[1764799466922,0.63075416,914.09,913.1,0.05381141]
[1764799467122,0.63075416,914.08,913.1,0.05381141]
[1764799467326,0.63075416,914.07,913.1,0.05381141]
[1764799467626,0.63075416,914.06,913.1,0.05381141]
[1764799467922,1.08534688,914.75,913.1,0.05381141]
[1764799468225,1.08534688,914.73,913.1,0.05381141]
[1764799468427,0.63084527,914.72,913.1,0.05381141]
[1764799468625,1.71619215,914.72,913.1,0.05381141]
[1764799468922,0.63084527,914.71,913.1,0.05381141]
[1764799470326,0.63084527,914.7,913.1,0.05381141]
[1764799470621,0.63084527,914.69,913.1,0.05381141]
[1764799470821,0.63084527,914.68,913.1,0.05381141]
[1764799471026,0.63084527,914.67,913.1,0.05381141]
[1764799471222,0.63084527,914.66,913.1,0.05381141]
[1764799471424,0.63084527,914.65,913.1,0.05381141]
[1764799471624,0.63084527,914.64,913.1,0.05381141]
[1764799471821,0.63084527,914.63,913.1,0.05381141]
[1764799472023,0.63084527,914.62,913.1,0.05381141]
[1764799472226,0.63084527,914.61,913.1,0.05381141]
[1764799472427,0.63084527,914.6,913.1,0.05381141]
[1764799472627,0.63084527,914.59,913.1,0.05381141]
[1764799472824,0.63084527,914.58,913.1,0.05381141]
[1764799473027,0.63084527,914.57,913.1,0.05381141]
[1764799473327,1.08534688,915.02,913.1,0.05381141]
[1764799473529,0.63109985,915.01,913.1,0.05381141]
[1764799473828,0.63109985,915.0,913.1,0.05381141]
[1764799474028,0.63109985,914.99,913.1,0.05381141]
[1764799474226,0.63109985,914.98,913.1,0.05381141]
[1764799474524,0.63109985,914.97,913.1,0.05381141]
[1764799474728,0.63109985,914.96,913.1,0.05381141]
[1764799474926,0.63109985,914.95,913.1,0.05381141]
[1764799475124,0.63109985,914.94,913.1,0.05381141]
[1764799475328,0.63109985,914.93,913.1,0.05381141]
[1764799475530,0.63109985,914.92,913.1,0.05381141]
[1764799475729,0.63109985,914.91,913.1,0.05381141]
[1764799475930,0.63109985,914.9,913.1,0.05381141]
[1764799476130,0.63109985,914.89,913.1,0.05381141]
[1764799476329,0.63109985,914.88,913.1,0.05381141]
[1764799476525,0.63109985,914.87,913.1,0.05381141]
[1764799476730,0.63109985,914.86,913.1,0.05381141]
[1764799477032,0.63109985,914.85,913.1,0.05381141]
[1764799477228,0.63109985,914.84,913.1,0.05381141]
[1764799477426,0.63109985,914.83,913.1,0.05381141]
[1764799477627,1.08534688,915.29,913.1,0.05381141]
[1764799477828,0.63104841,915.28,913.1,0.05381141]
[1764799478031,0.63104841,915.27,913.1,0.05381141]
[1764799478332,0.63104841,915.26,913.1,0.05381141]
[1764799478532,0.63104841,915.25,913.1,0.05381141]
[1764799478832,0.63104841,915.24,913.1,0.05381141]
[1764799479028,0.63104841,915.23,913.1,0.05381141]
[1764799479226,0.63104841,915.22,913.1,0.05381141]
[1764799479427,1.08534688,915.28,913.1,0.05381141]
[1764799479428,0.63104841,915.21,913.1,0.05381141]
[1764799479628,0.63104841,915.2,913.1,0.05381141]
[1764799479827,0.63104841,915.19,912.3,1.59695995]
[1764799480029,0.63104841,915.18,912.3,1.59695995]
[1764799480232,0.63104841,915.17,912.32,1.59695995]
[1764799480433,0.63104841,915.16,912.32,1.59695995]
[1764799480729,0.63104841,915.15,912.32,1.59695995]
[1764799480932,0.63104841,915.14,912.32,1.59695995]
[1764799481131,0.63104841,915.13,912.32,1.59695995]
[1764799481333,0.63104841,915.12,912.35,1.59695995]
[1764799481534,0.63104841,915.11,912.35,1.59695995]
[1764799481733,0.63104841,915.1,912.35,1.59695995]
[1764799481935,0.63104841,915.09,912.35,1.59695995]
[1764799482136,0.63104841,915.08,912.35,1.59695995]
[1764799482336,0.63104841,915.07,912.36,1.59695995]
[1764799482533,0.63104841,915.06,912.36,1.59695995]
[1764799482737,0.63104841,915.05,912.36,1.59695995]
[1764799483033,0.63104841,915.04,912.37,1.262]
[1764799483233,0.63104841,915.03,912.37,2.85895995]
[1764799483435,0.63104841,915.02,912.37,2.85895995]
[1764799483633,0.63104841,915.01,912.37,2.85895995]
[1764799483836,0.63104841,915.0,912.37,2.85895995]
[1764799484032,0.63104841,914.99,912.37,2.85895995]
[1764799484237,0.63104841,914.98,912.39,1.59695995]
[1764799484436,0.63104841,914.97,912.39,1.59695995]
[1764799484633,0.63104841,914.96,912.39,1.59695995]
[1764799484837,0.63104841,914.95,912.37,2.85895995]
[1764799485037,0.63104841,914.94,912.37,2.85895995]
[1764799485240,0.63104841,914.93,912.39,1.59695995]
[1764799485433,0.63104841,914.92,912.39,1.59695995]
[1764799485637,0.63104841,914.91,912.39,1.59695995]
[1764799485834,0.63104841,914.9,912.4,1.59695995]
[1764799486138,0.63104841,914.89,912.4,1.59695995]
[1764799486434,0.63104841,914.88,912.43,1.59695995]
[1764799486634,0.63104841,914.87,912.37,1.262]
[1764799486837,0.63104841,914.86,912.37,1.262]
[1764799487035,0.63104841,914.85,912.37,1.262]
[1764799487236,0.63104841,914.84,912.37,1.262]
[1764799487437,0.63104841,914.83,912.37,1.262]
[1764799487634,0.63104841,914.82,912.37,1.262]
[1764799487835,0.63104841,914.81,912.37,1.262]
[1764799488039,0.63104841,914.8,912.37,1.262]
[1764799488335,0.63104841,914.79,912.37,1.262]
[1764799488536,0.63104841,914.78,912.37,1.262]
[1764799488740,0.63104841,914.77,912.37,1.262]
[1764799488936,0.63104841,914.76,912.37,1.262]
[1764799489137,0.63104841,914.75,912.37,1.262]
[1764799489338,0.63104841,914.74,912.37,1.262]
[1764799489541,0.63104841,914.73,912.38,1.198]
[1764799489738,0.63104841,914.72,912.38,1.198]
[1764799489937,1.08534688,915.11,912.38,1.198]
[1764799489938,0.63104841,914.71,912.38,1.198]
[1764799490143,0.63104841,914.7,912.38,1.198]
[1764799490342,1.08534688,915.11,912.38,1.198]
[1764799490343,0.63104841,914.69,912.38,1.198]
[1764799490542,0.63104841,914.68,912.38,1.198]
[1764799490741,0.63104841,914.67,912.38,1.198]
[1764799490946,0.63104841,914.66,912.38,1.198]
[1764799491144,0.63104841,914.65,912.38,1.198]
[1764799491344,1.08534688,915.09,912.38,1.198]
[1764799491345,0.63104841,914.64,912.38,1.198]
[1764799491640,0.63104841,914.63,912.38,1.198]
[1764799491845,1.08534688,915.1,912.38,1.198]
[1764799492144,0.62934347,915.09,912.38,1.198]
[1764799492345,0.62934347,915.08,912.38,1.198]
[1764799492545,0.62934347,915.07,912.38,1.198]
[1764799492741,0.62934347,915.06,912.38,1.198]
[1764799492946,0.62934347,915.05,912.38,1.198]
[1764799493145,0.62934347,915.04,912.38,1.198]
[1764799493345,0.62934347,915.03,912.38,1.198]
[1764799493543,1.71469035,915.02,912.38,1.198]
[1764799493746,1.08534688,914.97,912.38,1.198]
[1764799493945,1.08534688,914.94,912.38,1.198]
[1764799494146,1.08534688,914.75,912.38,1.198]
[1764799494446,0.62934347,914.74,912.38,1.198]
[1764799494648,0.62934347,914.73,912.38,1.198]
[1764799494850,0.62934347,914.72,912.38,1.198]
[1764799495149,0.62934347,914.71,912.38,1.198]
[1764799495347,0.62934347,914.7,912.38,1.198]
[1764799495646,0.62934347,914.69,912.38,1.198]
[1764799495850,0.62934347,914.68,912.38,1.198]
[1764799496047,0.62934347,914.67,912.38,1.198]
[1764799496252,0.62934347,914.66,912.38,1.198]
[1764799496452,0.62934347,914.65,912.38,1.198]
[1764799496653,0.62934347,914.64,912.38,1.198]
[1764799496850,0.62934347,914.63,912.38,1.198]
[1764799497052,0.62934347,914.62,912.38,1.198]
[1764799497251,0.62934347,914.61,912.38,1.198]
[1764799497553,0.62934347,914.6,912.38,1.198]
[1764799497752,0.62934347,914.59,912.38,1.198]
[1764799497952,0.62934347,914.58,912.38,1.198]
[1764799498248,0.62934347,914.57,912.38,1.198]
[1764799498447,0.62934347,914.56,912.38,1.198]
[1764799498652,0.62934347,914.55,912.38,1.198]
[1764799498853,0.62934347,914.54,912.38,1.198]
[1764799499148,0.62934347,914.53,912.38,1.198]
[1764799499353,0.62934347,914.52,912.38,1.198]
[1764799499547,0.62934347,914.51,912.38,1.198]
[1764799499749,0.62934347,914.5,912.38,1.198]
[1764799499950,0.62934347,914.49,912.38,1.198]
[1764799500150,0.62934347,914.48,912.38,1.198]
[1764799500350,0.62934347,914.47,912.38,1.198]
[1764799500548,0.62934347,914.46,912.38,1.198]
[1764799500752,0.62934347,914.45,912.38,1.198]
[1764799500949,0.62934347,914.44,912.38,1.198]
[1764799501150,0.62934347,914.43,912.38,1.198]
[1764799501456,0.62934347,914.42,912.39,1.298]
[1764799501651,0.62934347,914.41,912.39,1.298]
[1764799501855,1.08534688,914.5,912.39,1.298]
[1764799501856,0.62934347,914.4,912.39,1.298]
[1764799502050,0.62934347,914.39,912.39,1.298]
[1764799502352,0.62934347,914.38,912.39,1.298]
[1764799502556,0.62934347,914.37,912.39,1.298]
[1764799502756,0.62934347,914.36,912.39,1.298]
[1764799503052,0.62934347,914.35,912.39,1.298]
[1764799503253,0.62934347,914.34,912.39,1.298]
[1764799503454,0.62934347,914.33,912.39,1.298]
[1764799503659,1.08534688,914.79,912.39,1.298]
[1764799503957,0.62987189,914.78,912.39,1.298]
[1764799504154,0.62987189,914.77,912.39,1.298]
[1764799504461,0.62987189,914.76,912.39,1.298]
[1764799504658,0.62987189,914.75,912.39,1.298]
[1764799504954,0.62987189,914.74,912.39,1.298]
[1764799505155,0.62987189,914.73,912.39,1.298]
[1764799505457,0.62987189,914.72,912.39,1.298]
[1764799505653,0.62987189,914.71,912.39,1.298]
[1764799505857,0.62987189,914.7,912.39,1.298]
[1764799506054,0.62987189,914.69,912.39,1.298]
[1764799506358,0.62987189,914.68,912.39,1.298]
[1764799506660,0.62987189,914.67,912.39,1.298]
[1764799506860,0.62987189,914.66,912.39,1.298]
[1764799507060,0.62987189,914.65,912.39,1.298]
[1764799507261,0.62987189,914.64,912.39,1.298]
[1764799507559,0.62987189,914.63,912.39,1.298]
[1764799507755,0.62987189,914.62,912.39,1.298]
[1764799508059,0.62987189,914.61,912.39,1.298]
[1764799508260,0.62987189,914.6,912.39,1.298]
[1764799508463,0.62987189,914.59,912.39,1.298]
[1764799508760,2.71786809,915.65,912.39,1.298]
[1764799508761,0.62987189,914.58,912.39,1.298]
[1764799508961,0.62987189,914.57,912.39,1.298]
[1764799509164,0.62987189,914.56,912.39,1.298]
[1764799509360,0.62987189,914.55,912.39,1.298]
[1764799509562,0.62987189,914.54,912.39,1.298]
[1764799509861,0.62987189,914.53,912.39,1.298]
[1764799510059,0.62987189,914.52,912.39,1.298]
[1764799510260,0.62987189,914.51,912.39,1.298]
[1764799510456,0.62987189,914.5,912.39,1.298]
[1764799510660,0.62987189,914.49,912.39,1.298]
[1764799510962,0.62987189,914.48,912.39,1.298]
[1764799511162,0.62987189,914.47,912.45,1.59695995]
[1764799511361,0.62987189,914.46,912.46,1.59695995]
[1764799511562,0.62987189,914.45,912.46,1.59695995]
[1764799511759,0.62987189,914.44,912.46,1.59695995]
[1764799511958,0.62987189,914.43,912.46,1.59695995]
[1764799512263,0.62987189,914.42,912.52,1.59695995]
[1764799512463,0.62987189,914.41,912.53,1.59695995]
[1764799512663,0.62987189,914.4,912.53,1.59695995]
[1764799512863,0.62987189,914.39,912.53,1.59695995]
[1764799513064,0.62987189,914.38,912.53,1.59695995]
[1764799513264,0.62987189,914.37,912.58,1.59695995]
[1764799513461,0.62987189,914.36,912.59,1.59695995]
[1764799513665,0.62987189,914.35,912.59,1.59695995]
[1764799513862,0.62987189,914.34,912.59,1.59695995]
[1764799514162,0.63401735,914.33,912.63,1.59695995]
[1764799514462,1.08534688,914.78,912.64,1.59695995]
[1764799514666,0.63402809,914.77,912.77,1.59695995]
[1764799514860,0.63402809,914.76,912.77,1.59695995]
[1764799515062,0.63402809,914.75,912.77,1.59695995]
[1764799515266,0.63402809,914.74,912.8,1.59695995]
[1764799515466,0.63402809,914.73,912.7,1.59695995]
[1764799515667,0.63402809,914.72,912.7,1.59695995]
[1764799515868,0.63402809,914.71,912.68,1.59695995]
[1764799516063,0.63402809,914.7,912.69,1.59695995]
[1764799516263,0.63402809,914.69,912.76,1.59695995]
[1764799516467,0.63402809,914.68,912.76,1.59695995]
[1764799516666,0.63402809,914.67,912.76,1.59695995]
[1764799516966,0.63402809,914.66,912.76,1.59695995]
[1764799517166,0.63402809,914.65,912.81,1.59695995]
[1764799517368,0.63402809,914.64,912.82,1.59695995]
[1764799517569,1.08534688,914.75,912.39,1.298]
[1764799517570,0.63402809,914.63,912.95,1.59695995]
[1764799517768,0.63402809,914.62,912.93,1.59695995]
[1764799517967,0.63402809,914.61,912.93,1.59695995]
[1764799518170,0.63402809,914.6,912.97,1.59695995]
[1764799518368,0.63402809,914.59,912.98,1.59695995]
[1764799518570,0.63402809,914.58,912.96,1.59695995]
[1764799518771,0.63402809,914.57,912.94,1.59695995]
[1764799518969,0.63402809,914.56,912.88,1.59695995]
[1764799519172,0.63402809,914.55,912.94,1.59695995]
[1764799519373,0.63402809,914.54,912.94,1.59695995]
[1764799519572,0.63402809,914.53,912.94,1.59695995]
[1764799519875,0.63402809,914.52,912.94,1.59695995]
[1764799520072,0.63402809,914.51,912.94,1.59695995]
[1764799520270,0.63402809,914.5,912.97,1.59695995]
[1764799520473,0.63402809,914.49,912.95,1.59695995]
[1764799520776,0.63402809,914.48,912.87,1.59695995]
[1764799520972,0.63402809,914.47,912.92,1.59695995]
[1764799521172,0.63402809,914.46,912.93,1.59695995]
[1764799521471,0.63402809,914.45,912.97,1.59695995]
[1764799521673,0.63402809,914.44,912.97,1.59695995]
[1764799521976,0.63402809,914.43,912.97,1.59695995]
[1764799522271,0.63402809,914.42,912.99,1.59695995]
[1764799522475,0.63402809,914.41,912.98,1.59695995]
[1764799522671,0.63402809,914.4,912.98,1.59695995]
[1764799522876,0.63402809,914.39,912.98,1.59695995]
[1764799523072,0.63402809,914.38,912.98,1.59695995]
[1764799523371,0.63402809,914.37,912.99,1.59695995]
[1764799523576,0.63402809,914.36,912.99,1.59695995]
[1764799523771,0.63402809,914.35,912.99,1.59695995]
[1764799523975,0.63402809,914.34,912.99,1.59695995]
[1764799524173,0.63402809,914.33,912.94,1.59695995]
[1764799524373,0.63402809,914.32,912.94,1.59695995]
[1764799524572,0.63402809,914.31,912.93,1.59695995]
[1764799524776,0.63402809,914.3,912.93,1.59695995]
[1764799524976,0.63402809,914.29,912.93,1.59695995]
[1764799525272,0.63402809,914.28,912.94,1.59695995]
[1764799525474,0.63402809,914.27,912.94,1.59695995]
[1764799525677,0.63402809,914.27,912.39,1.298]
[1764799525678,0.63402809,914.26,912.93,1.59695995]
[1764799525877,0.63402809,914.25,912.94,1.59695995]
[1764799526077,0.63402809,914.24,912.88,1.59695995]
[1764799526378,0.63402809,914.23,912.91,1.59695995]
[1764799526677,0.63402809,914.22,912.91,1.59695995]
[1764799526877,0.63402809,914.21,912.91,1.59695995]
[1764799527076,0.63402809,914.2,912.91,1.59695995]
[1764799527278,0.63402809,914.19,912.84,1.59695995]
[1764799527479,0.63402809,914.18,912.84,1.59695995]
[1764799527775,0.63402809,914.17,912.84,1.59695995]
[1764799527975,0.63402809,914.16,912.84,1.59695995]
[1764799528275,0.63402809,914.15,912.84,1.59695995]
[1764799528476,0.63402809,914.14,912.84,1.59695995]
[1764799528674,0.63402809,914.13,912.84,1.59695995]
[1764799528878,0.63402809,914.12,912.84,1.59695995]
[1764799529081,0.63402809,914.11,912.84,1.59695995]
[1764799529281,0.63402809,914.1,912.86,1.59695995]
[1764799529482,0.63402809,914.09,912.86,1.59695995]
[1764799529679,0.63402809,914.08,912.93,1.59695995]
[1764799529977,0.63402809,914.07,912.93,1.59695995]
[1764799530283,0.63402809,914.06,912.94,1.59695995]
[1764799530481,1.08534688,914.52,912.96,1.59695995]
[1764799530782,0.63348872,914.51,912.98,1.59695995]
[1764799530983,0.63348872,914.5,912.98,1.59695995]
[1764799531179,0.63348872,914.49,912.98,1.59695995]
[1764799531379,0.63348872,914.48,913.03,1.59695995]
[1764799531582,0.63348872,914.47,913.03,1.59695995]
[1764799531781,0.63348872,914.46,913.04,1.59695995]
[1764799531983,0.63348872,914.45,913.14,1.59695995]
[1764799532185,0.63348872,914.44,913.14,1.59695995]
[1764799532381,0.63348872,914.43,913.12,1.59695995]
[1764799532587,0.63348872,914.42,913.13,1.59695995]
[1764799532880,0.63348872,914.41,913.12,1.59695995]
[1764799533085,0.63348872,914.4,913.12,1.59695995]
[1764799533280,0.63348872,914.39,913.13,1.149]
[1764799533485,0.63348872,914.38,913.13,1.149]
[1764799533780,0.63348872,914.37,913.13,1.149]
[1764799534079,1.63072085,914.81,913.13,1.149]
[1764799534080,0.63348872,914.36,913.13,1.149]
[1764799534386,0.63348872,914.35,913.13,1.149]
[1764799534685,0.63348872,914.34,913.13,1.149]
[1764799534885,0.63348872,914.33,913.13,1.149]
[1764799535085,0.63348872,914.32,913.13,1.149]
[1764799535388,0.63348872,914.31,913.13,1.149]
[1764799535586,0.63348872,914.3,913.13,1.149]
[1764799535785,0.63348872,914.29,913.13,1.149]
[1764799536087,0.63348872,914.28,913.13,1.149]
[1764799536387,0.63348872,914.27,913.13,1.149]
[1764799536682,0.63348872,914.26,913.13,1.149]
[1764799536885,0.63348872,914.25,913.13,1.149]
[1764799537183,0.63348872,914.24,913.13,1.149]
[1764799537382,0.63348872,914.23,913.13,1.149]
[1764799537582,0.63348872,914.22,913.13,1.149]
[1764799537786,0.63348872,914.21,913.13,1.149]
[1764799538086,0.63348872,914.2,913.13,1.149]
[1764799538287,1.08534688,914.68,913.14,1.59695995]
[1764799538482,0.63353192,914.67,913.15,1.59695995]
[1764799538788,0.63353192,914.66,913.15,1.59695995]
[1764799538986,0.63353192,914.65,913.15,1.59695995]
[1764799539187,0.63353192,914.64,913.16,1.59695995]